bitfinex/quotes_BTCUSD_20251009
["timestamp","ask_amount","ask_price","bid_price","bid_amount"]
[1760001463597,0.22275311,121630.0,121620.0,0.04278936]
[1760001463814,0.25990311,121630.0,121620.0,0.00153936]
[1760001464167,0.62704902,121630.0,121620.0,0.00153936]
[1760001464381,0.25990311,121630.0,121620.0,0.00153936]
[1760001464576,0.22275311,121630.0,121620.0,0.00153936]
[1760001464778,0.23392469,121630.0,121620.0,0.00153936]
[1760001465766,0.23392469,121630.0,121620.0,0.04092936]
[1760001465942,0.23392469,121630.0,121620.0,0.00153936]
[1760001466598,0.3472545,121630.0,121620.0,0.00153936]
[1760001466801,0.71975828,121630.0,121620.0,0.00153936]
[1760001467999,0.3774064,121630.0,121620.0,0.00153936]
[1760001468200,0.71975828,121630.0,121620.0,0.00153936]
[1760001470032,0.63552026,121630.0,121620.0,0.00153936]
[1760001471899,0.3784064,121630.0,121620.0,0.00153936]
[1760001472105,0.30076659,121630.0,121620.0,0.00153936]
[1760001472312,0.55788045,121630.0,121620.0,0.00153936]
[1760001473265,0.30076659,121630.0,121620.0,0.00153936]
[1760001473685,0.55788045,121630.0,121620.0,0.00153936]
[1760001475036,1.29479201,121630.0,121620.0,0.00153936]
[1760001475541,1.31948368,121630.0,121620.0,0.00153936]
[1760001476192,1.32715403,121630.0,121620.0,0.00153936]
[1760001476396,1.31948368,121630.0,121620.0,0.00153936]
[1760001477297,1.32715224,121630.0,121620.0,0.00153936]
[1760001477723,1.12133175,121630.0,121620.0,0.00153936]
[1760001477940,1.24443722,121630.0,121620.0,0.00153936]
[1760001478349,0.7302095,121630.0,121620.0,0.00153936]
[1760001478565,0.9796548,121630.0,121620.0,0.00153936]
[1760001479604,1.23676866,121630.0,121620.0,0.00153936]
[1760001482345,0.72254094,121630.0,121620.0,0.00153936]
[1760001482555,1.23676866,121630.0,121620.0,0.00153936]
[1760001483013,0.9796548,121630.0,121620.0,0.00153936]
[1760001483431,0.72254094,121630.0,121620.0,0.00153936]
[1760001483654,0.67567936,121630.0,121620.0,0.03995936]
[1760001483872,0.53771373,121630.0,121620.0,0.38528322]
[1760001484091,0.53771373,121630.0,121620.0,0.54972985]
[1760001484092,0.016348,121630.0,121620.0,0.54972985]
[1760001484321,0.001,121630.0,121620.0,0.54972985]
[1760001484736,0.18596529,121630.0,121620.0,0.54972985]
[1760001484969,0.16543311,121630.0,121620.0,0.54972985]
[1760001485382,0.16543311,121630.0,121620.0,0.29261599]
[1760001485583,0.16543311,121630.0,121620.0,0.30398601]
[1760001486207,0.16543311,121630.0,121620.0,0.12816936]
[1760001486376,0.42254697,121630.0,121620.0,0.12816936]
[1760001486584,0.16543311,121630.0,121620.0,0.12816936]
[1760001487039,0.42254697,121630.0,121620.0,0.06847936]
[1760001487659,0.16543311,121630.0,121620.0,0.06847936]
[1760001487864,0.42254697,121630.0,121620.0,0.06847936]
[1760001489435,0.16543311,121630.0,121620.0,0.06847936]
[1760001489640,0.42254697,121630.0,121620.0,0.06847936]
[1760001490088,0.42254697,121630.0,121620.0,0.03005936]
[1760001490311,0.42254697,121630.0,121620.0,0.06847936]
[1760001491369,0.16543311,121630.0,121620.0,0.12816936]
[1760001491574,0.42254697,121630.0,121620.0,0.12816936]
[1760001492029,0.16543311,121630.0,121620.0,0.12816936]
[1760001495153,0.42254697,121630.0,121620.0,0.12816936]
[1760001496022,0.42254697,121630.0,121620.0,0.06847936]
[1760001496224,0.16543311,121630.0,121620.0,0.06847936]
[1760001496442,0.42254697,121630.0,121620.0,0.06847936]
[1760001497041,0.16543311,121630.0,121620.0,0.12816936]
[1760001497273,0.16543311,121630.0,121620.0,0.29261599]
[1760001497508,0.16543311,121630.0,121620.0,0.38528322]
[1760001497882,0.16543311,121630.0,121620.0,0.12816936]
[1760001504427,0.16543311,121630.0,121620.0,0.29261599]
[1760001504630,0.16543311,121630.0,121620.0,0.54972985]
[1760001504846,0.001,121630.0,121620.0,0.80684371]
[1760001505077,0.001,121630.0,121620.0,0.88996577]
[1760001510438,0.16440658,121650.0,121640.0,0.16441959]
[1760001510640,0.16440658,121650.0,121640.0,0.28716386]
[1760001510840,0.42152044,121650.0,121640.0,0.12629]
[1760001511063,0.42152044,121650.0,121640.0,0.03005]
[1760001511281,0.16441959,121640.0,121630.0,0.03005]
[1760001511705,0.16443311,121630.0,121620.0,0.02852]
[1760001511913,0.42154697,121630.0,121620.0,0.02852]
[1760001512755,0.16444663,121620.0,121610.0,0.02852]
[1760001512962,0.16444663,121620.0,121610.0,0.06708]
[1760001513168,0.42156049,121620.0,121610.0,0.06708]
[1760001513400,0.16444663,121620.0,121610.0,0.23154015]
[1760001513605,0.16444663,121620.0,121610.0,0.28922015]
[1760001513803,0.16444663,121620.0,121610.0,0.28927058]
[1760001514066,0.16444663,121620.0,121610.0,0.54638444]
[1760001514578,0.16443311,121630.0,121610.0,0.54638444]
[1760001514722,0.16443311,121630.0,121620.0,0.08773]
[1760001514936,0.16443311,121630.0,121620.0,0.12629]
[1760001515740,0.42154697,121630.0,121620.0,0.12629]
[1760001516144,0.16443311,121630.0,121620.0,0.12629]
[1760001516347,0.16443311,121630.0,121620.0,0.29073663]
[1760001516535,0.16443311,121630.0,121620.0,0.12629]
[1760001516732,0.16443311,121630.0,121620.0,0.54785049]
[1760001516930,0.16443311,121630.0,121620.0,0.12629]
[1760001517386,0.16443311,121630.0,121620.0,0.29073663]
[1760001518941,0.16443311,121630.0,121620.0,0.29227599]
[1760001519150,0.16443311,121630.0,121620.0,0.12782936]
[1760001519556,0.42154697,121630.0,121620.0,0.29227599]
[1760001519984,0.42154697,121630.0,121620.0,0.12782936]
[1760001520531,0.42154697,121630.0,121620.0,0.29227599]
[1760001520731,0.42154697,121630.0,121620.0,0.07014936]
[1760001520959,0.42154697,121630.0,121620.0,0.00153936]
[1760001522595,0.42154697,121630.0,121620.0,0.04009936]
[1760001523816,0.42154697,121630.0,121620.0,0.07014936]
[1760001525430,0.42154697,121630.0,121620.0,0.00153936]
[1760001529218,0.16443311,121630.0,121620.0,0.00153936]
[1760001529431,0.42154697,121630.0,121620.0,0.04205936]
[1760001529887,0.16443311,121630.0,121620.0,0.12792936]
[1760001530124,0.42154697,121630.0,121620.0,0.12792936]
[1760001530552,0.16443311,121630.0,121620.0,0.12792936]
[1760001531179,0.42154697,121630.0,121620.0,0.00153936]
[1760001531609,0.42154697,121630.0,121620.0,0.04205936]
[1760001532051,0.16443311,121630.0,121620.0,0.04205936]
[1760001532746,0.16443311,121630.0,121620.0,0.06996936]
[1760001533398,0.16443311,121630.0,121620.0,0.12792936]
[1760001534498,0.19732981,121640.0,121620.0,0.29237599]
[1760001534708,0.18496529,121630.0,121620.0,0.23287663]
[1760001534917,0.16443311,121630.0,121620.0,0.06843]
[1760001535346,0.16443311,121630.0,121620.0,0.12495]
[1760001535971,0.16443311,121630.0,121620.0,0.28939663]
[1760001540403,0.17264056,121640.0,121620.0,0.28939663]
[1760001540611,0.17264056,121640.0,121630.0,0.08512]
[1760001541026,0.17264056,121640.0,121630.0,0.12328]
[1760001541791,0.17264056,121640.0,121630.0,0.06676]
[1760001541997,0.16443311,121630.0,121620.0,0.2488716]
[1760001542204,0.16443311,121630.0,121620.0,0.2870316]
[1760001543322,0.51541944,121640.0,121620.0,0.2870316]
[1760001543544,0.16443311,121630.0,121620.0,0.2870316]
[1760001544046,0.17264056,121640.0,121630.0,0.16443311]
[1760001544301,0.17264056,121640.0,121630.0,0.12328]
[1760001545710,0.17364056,121640.0,121630.0,0.12328]
[1760001545918,0.17364056,121640.0,121630.0,0.06676]
[1760001546945,0.17364056,121640.0,121630.0,0.23119311]
[1760001547164,0.17364056,121640.0,121630.0,0.28771311]
[1760001547876,0.16541959,121640.0,121630.0,0.28771311]
[1760001551286,0.16541959,121640.0,121630.0,0.28873928]
[1760001551963,0.16541959,121640.0,121630.0,0.12430617]
[1760001552170,0.16541959,121640.0,121630.0,0.28873928]
[1760001553016,0.001,121640.0,121630.0,0.28873928]
[1760001553253,0.001,121640.0,121630.0,0.63151816]
[1760001554287,0.001,121640.0,121630.0,0.28873928]
[1760001555156,0.16541959,121640.0,121630.0,0.28873928]
[1760001555629,0.16541959,121640.0,121630.0,0.12430617]
[1760001555814,0.54200312,121640.0,121630.0,0.00102617]
[1760001556271,0.50819847,121640.0,121630.0,0.00102617]
[1760001556480,0.50541959,121640.0,121630.0,0.00102617]
[1760001556922,0.84819847,121640.0,121630.0,0.00102617]
[1760001557336,0.96147243,121640.0,121630.0,0.00102617]
[1760001557543,0.61869355,121640.0,121630.0,0.00102617]
[1760001557767,0.96147243,121640.0,121630.0,0.00102617]
[1760001558214,1.04146923,121640.0,121630.0,0.00102617]
[1760001559059,0.69869035,121640.0,121630.0,0.00102617]
[1760001559518,0.96147243,121640.0,121630.0,0.00102617]
[1760001560142,0.61869355,121640.0,121630.0,0.12430617]
[1760001560355,0.61869355,121640.0,121630.0,0.06778617]
[1760001561874,0.96147243,121640.0,121630.0,0.00102617]
[1760001562090,0.61869355,121640.0,121630.0,0.00102617]
[1760001562294,0.96147243,121640.0,121630.0,0.00102617]
[1760001563827,1.04146923,121640.0,121630.0,0.00102617]
[1760001564237,0.96147243,121640.0,121630.0,0.00102617]
[1760001570224,1.36624215,121640.0,121630.0,0.00102617]
[1760001570638,1.06354563,121640.0,121630.0,0.00102617]
[1760001571083,1.40532451,121640.0,121630.0,0.00102617]
[1760001571502,1.40732451,121640.0,121630.0,0.00102617]
[1760001571938,1.48832131,121640.0,121630.0,0.00102617]
[1760001572601,0.80276355,121640.0,121630.0,0.00102617]
[1760001572812,1.5133213,121640.0,121630.0,1e-08]
[1760001573254,1.52101328,121640.0,121630.0,1e-08]
[1760001573471,1.5133213,121640.0,121630.0,1e-08]
[1760001573674,1.4333245,121640.0,121630.0,1e-08]
[1760001574315,1.4323245,121640.0,121630.0,1e-08]
[1760001574524,1.07215497,121640.0,121630.0,1e-08]
[1760001574774,1.07415497,121640.0,121630.0,1e-08]
[1760001574977,1.41993385,121640.0,121630.0,1e-08]
[1760001575179,1.51530243,121640.0,121630.0,1e-08]
[1760001576475,1.49993065,121640.0,121630.0,1e-08]
[1760001576679,1.51529836,121640.0,121630.0,1e-08]
[1760001579459,1.49993065,121640.0,121630.0,1e-08]
[1760001579683,0.81437289,121640.0,121630.0,1e-08]
[1760001579914,1.15715177,121640.0,121630.0,1e-08]
[1760001580330,1.49993065,121640.0,121630.0,1e-08]
[1760001582117,1.13215178,121640.0,121630.0,1e-08]
[1760001582709,1.47493066,121640.0,121630.0,1e-08]
[1760001585521,1.49030853,121640.0,121630.0,1e-08]
[1760001588165,1.51530852,121640.0,121630.0,1e-08]
[1760001588378,1.52299903,121640.0,121630.0,1e-08]
[1760001589865,1.51999903,121640.0,121630.0,1e-08]
[1760001590095,1.52400075,121640.0,121630.0,1e-08]
[1760001590325,1.62400074,121640.0,121630.0,1e-08]
[1760001590552,1.60093064,121640.0,121630.0,1e-08]
[1760001591653,1.59893064,121640.0,121630.0,1e-08]
[1760001591876,1.60193064,121640.0,121630.0,1e-08]
[1760001592099,2.48735991,121640.0,121630.0,1e-08]
[1760001592312,2.48199979,121640.0,121630.0,1e-08]
[1760001592747,2.50507502,121640.0,121630.0,1e-08]
[1760001593882,1.73326481,121640.0,121630.0,1e-08]
[1760001595063,2.50507502,121640.0,121630.0,1e-08]
[1760001598076,2.30189901,121640.0,121630.0,1e-08]
[1760001598302,2.4663186,121640.0,121630.0,1e-08]
[1760001599192,2.46631581,121640.0,121630.0,1e-08]
[1760001600005,2.51566581,121640.0,121630.0,1e-08]
[1760001600224,2.46631581,121640.0,121630.0,1e-08]
[1760001601784,0.19463911,121590.0,121580.0,0.09345059]
[1760001602003,0.17270651,121610.0,121590.0,0.25106721]
[1760001602214,0.16447368,121600.0,121590.0,0.08658]
[1760001602385,0.16447368,121600.0,121590.0,0.08952151]
[1760001602605,0.16447368,121600.0,121590.0,0.13236243]
[1760001602851,0.16447368,121600.0,121590.0,0.13548141]
[1760001603692,0.16447368,121600.0,121590.0,0.29996862]
[1760001603908,0.47659572,121620.0,121610.0,0.16446015]
[1760001603909,0.16447909,121620.0,121610.0,0.16446015]
[1760001604116,0.16447909,121620.0,121610.0,0.38197007]
[1760001604322,0.16447909,121620.0,121610.0,0.1247]
[1760001605505,0.16747909,121620.0,121610.0,0.1247]
[1760001605736,0.16947909,121620.0,121610.0,0.1247]
[1760001607923,0.16947909,121620.0,121610.0,0.12572638]
[1760001608842,0.42674916,121620.0,121610.0,0.12572638]
[1760001612749,0.16947909,121620.0,121610.0,0.12572638]
[1760001612968,0.42674916,121620.0,121610.0,0.12572638]
[1760001613182,0.42674916,121620.0,121610.0,0.06701638]
[1760001613384,0.42674916,121620.0,121610.0,0.00102638]
[1760001613587,0.76401603,121620.0,121610.0,0.00102638]
[1760001614253,0.50674596,121620.0,121610.0,0.00102638]
[1760001614663,0.76401603,121620.0,121610.0,0.00102638]
[1760001615499,0.68401923,121620.0,121610.0,0.00102638]
[1760001616280,0.16947909,121620.0,121610.0,0.12572638]
[1760001616679,0.16947909,121620.0,121610.0,0.5474566]
[1760001616882,0.16947909,121620.0,121610.0,0.29018653]
[1760001617266,0.16947909,121620.0,121610.0,0.5474566]
[1760001617679,0.16647909,121620.0,121610.0,0.38299645]
[1760001617910,0.25492732,121630.0,121610.0,0.5474566]
[1760001618140,0.17264056,121640.0,121620.0,0.43321927]
[1760001618345,0.17264056,121640.0,121630.0,0.54640318]
[1760001618554,0.17403693,121650.0,121630.0,0.54640318]
[1760001618765,0.17403693,121650.0,121640.0,0.03927487]
[1760001618978,0.17403693,121650.0,121640.0,0.30052446]
[1760001619186,0.17403693,121650.0,121640.0,0.28911959]
[1760001619398,0.1745414,121650.0,121640.0,0.28911959]
[1760001619826,0.1745414,121650.0,121640.0,0.1247]
[1760001620046,0.1745414,121650.0,121640.0,0.13633904]
[1760001620902,0.1755414,121650.0,121640.0,0.13633904]
[1760001621534,0.00287593,121650.0,121640.0,0.5580287]
[1760001621747,0.00287593,121650.0,121640.0,0.54638966]
[1760001624188,0.00287593,121650.0,121640.0,0.88678179]
[1760001624631,0.00287593,121650.0,121640.0,1.14405186]
[1760001624916,0.02468383,121680.0,121670.0,0.16437905]
[1760001625140,0.02468383,121680.0,121670.0,0.44951912]
[1760001625141,0.18904937,121680.0,121670.0,0.44951912]
[1760001625380,0.18904937,121680.0,121670.0,0.28496905]
[1760001626243,0.18904937,121680.0,121670.0,0.12059]
[1760001626700,0.18904937,121680.0,121670.0,0.06532]
[1760001626701,0.44631944,121680.0,121670.0,0.06532]
[1760001626929,0.44785796,121680.0,121670.0,0.06532]
[1760001627794,0.42317413,121680.0,121670.0,0.12059]
[1760001628068,0.16590406,121680.0,121670.0,0.11909]
[1760001628288,0.42317413,121680.0,121670.0,0.11909]
[1760001628744,0.16590406,121680.0,121670.0,0.12946868]
[1760001629607,0.16590406,121680.0,121670.0,0.29384773]
[1760001629834,0.16590406,121680.0,121670.0,0.28346905]
[1760001630291,0.16690406,121680.0,121670.0,0.55077743]
[1760001630772,0.16690406,121680.0,121670.0,0.37636007]
[1760001631383,0.16690406,121680.0,121670.0,0.54073912]
[1760001632024,0.16690406,121680.0,121670.0,0.28346905]
[1760001632240,0.00253852,121680.0,121670.0,0.55110946]
[1760001633327,0.00253852,121680.0,121670.0,0.89150159]
[1760001633511,0.00253852,121680.0,121670.0,0.63423152]
[1760001635068,0.16690406,121680.0,121670.0,0.20221206]
[1760001635288,0.16690406,121680.0,121670.0,0.62386118]
[1760001636286,0.16690406,121680.0,121670.0,0.36659111]
[1760001636492,0.16690406,121680.0,121670.0,0.62386118]
[1760001636713,0.16690406,121680.0,121670.0,0.54073912]
[1760001637358,0.17454872,121680.0,121670.0,0.54073912]
[1760001639392,0.18984048,121680.0,121670.0,0.54073912]
[1760001639618,0.18984048,121680.0,121670.0,0.28346905]
[1760001639794,0.18984048,121680.0,121670.0,0.54073912]
[1760001639993,0.18984048,121680.0,121670.0,0.11909]
[1760001640830,0.18984048,121680.0,121670.0,0.28346905]
[1760001641338,0.18984048,121680.0,121670.0,0.11909]
[1760001643813,0.18984048,121680.0,121670.0,0.28346905]
[1760001644026,0.02547494,121680.0,121670.0,0.54073912]
[1760001644235,0.18984048,121680.0,121670.0,0.54073912]
[1760001644466,0.18984048,121680.0,121670.0,0.37636007]
[1760001644892,0.18984048,121680.0,121670.0,0.54073912]
[1760001646277,0.18987357,121680.0,121670.0,0.54073912]
[1760001647918,0.18987357,121680.0,121670.0,0.28346905]
[1760001648119,0.18987357,121680.0,121670.0,0.37636007]
[1760001649208,0.18987357,121680.0,121670.0,0.28346905]
[1760001650253,0.18991218,121680.0,121670.0,0.11909]
[1760001650899,0.18991218,121680.0,121670.0,0.54073912]
[1760001651528,0.44718225,121680.0,121670.0,0.11909]
[1760001652785,0.44724332,121680.0,121670.0,0.11909]
[1760001653011,0.16437905,121670.0,121660.0,0.02787]
[1760001653238,0.16439256,121660.0,121650.0,0.08406]
[1760001653447,0.16439256,121660.0,121650.0,0.12186]
[1760001653448,0.17208229,121660.0,121650.0,0.12186]
[1760001653866,0.13708229,121660.0,121650.0,0.12186]
[1760001655467,0.13708229,121660.0,121650.0,0.12286]
[1760001657546,0.13708229,121660.0,121650.0,0.46286]
[1760001658623,0.13708229,121660.0,121650.0,0.12286]
[1760001660355,0.13708229,121660.0,121650.0,0.29534275]
[1760001660552,0.13708229,121660.0,121650.0,0.12286]
[1760001660754,0.13708229,121660.0,121650.0,0.12565815]
[1760001660965,0.13708229,121660.0,121650.0,0.13382228]
[1760001661183,0.12939256,121660.0,121650.0,0.13382228]
[1760001662243,0.12939256,121660.0,121650.0,0.12286]
[1760001662961,0.1096106,121670.0,121650.0,0.12286]
[1760001663176,0.16439256,121660.0,121650.0,0.06667]
[1760001663799,0.16439256,121660.0,121650.0,0.12345]
[1760001664219,0.16490548,121660.0,121650.0,0.12345]
[1760001665064,0.16490548,121660.0,121650.0,0.13201154]
[1760001666112,0.16490548,121660.0,121650.0,0.47459523]
[1760001666376,0.16490548,121660.0,121650.0,0.12345]
[1760001666602,0.16490548,121660.0,121650.0,0.46603369]
[1760001667046,0.16490548,121660.0,121650.0,0.12345]
[1760001673309,0.16490548,121660.0,121650.0,0.46603369]
[1760001673519,0.16490548,121660.0,121650.0,0.12345]
[1760001676490,0.16490548,121660.0,121650.0,0.06667]
[1760001676948,0.16490548,121660.0,121650.0,0.12345]
[1760001686138,0.16490548,121660.0,121650.0,0.13821752]
[1760001691122,0.16490548,121660.0,121650.0,0.12345]
[1760001691316,0.16490548,121660.0,121650.0,0.13914467]
[1760001691836,0.16490548,121660.0,121650.0,0.12345]
[1760001693432,0.00051292,121660.0,121650.0,0.71356183]
[1760001694053,0.00051292,121660.0,121650.0,0.77385862]
[1760001694655,0.00051292,121660.0,121650.0,0.43127493]
[1760001694856,0.16490548,121660.0,121650.0,0.71356183]
[1760001695057,0.00051292,121660.0,121650.0,0.71356183]
[1760001696037,0.00051292,121660.0,121650.0,0.37097814]
[1760001696240,0.00051292,121660.0,121650.0,0.71356183]
[1760001697932,0.16490548,121660.0,121650.0,0.71356183]
[1760001698214,0.00051292,121660.0,121650.0,0.71356183]
[1760001704068,0.00051292,121660.0,121650.0,0.7763489]
[1760001704474,0.00051292,121660.0,121650.0,0.71356183]
[1760001707633,0.00051292,121660.0,121650.0,1.05356183]
[1760001708519,0.00051292,121660.0,121650.0,1.11523321]
[1760001712157,0.00051292,121660.0,121650.0,1.14538511]
[1760001712335,0.00051292,121660.0,121650.0,1.17134118]
[1760001712536,0.00051292,121660.0,121650.0,1.19601293]
[1760001713159,0.00051292,121660.0,121650.0,1.29601292]
[1760001714138,0.00051292,121660.0,121650.0,1.72361548]
[1760001714254,0.00051292,121660.0,121650.0,1.72261548]
[1760001714658,0.00051292,121660.0,121650.0,1.72461548]
[1760001714898,0.00051292,121660.0,121650.0,1.62461549]
[1760001715104,0.00051292,121660.0,121650.0,1.72461548]
[1760001718365,0.00051292,121660.0,121650.0,1.62461549]
[1760001718599,0.00051292,121660.0,121650.0,1.72461548]
[1760001719135,0.00051292,121660.0,121650.0,1.44193066]
[1760001719955,0.00051292,121660.0,121650.0,1.34193067]
[1760001720162,0.00051292,121660.0,121650.0,1.44193066]
[1760001720384,0.00051292,121660.0,121650.0,1.69865941]
[1760001721040,0.00051292,121660.0,121650.0,1.34193067]
[1760001721248,0.00051292,121660.0,121650.0,1.44193066]
[1760001724071,0.00051292,121660.0,121650.0,1.69865941]
[1760001724302,0.00051292,121660.0,121650.0,1.44193066]
[1760001725161,0.00051292,121660.0,121650.0,1.71053066]
[1760001726224,0.00051292,121660.0,121650.0,1.61053067]
[1760001726434,0.00051292,121660.0,121650.0,1.71053066]
[1760001727516,0.00051292,121660.0,121650.0,1.61053067]
[1760001727730,0.00051292,121660.0,121650.0,1.71053066]
[1760001731612,0.00051292,121660.0,121650.0,1.61053067]
[1760001731818,0.00051292,121660.0,121650.0,1.71053066]
[1760001733568,0.00051292,121660.0,121650.0,1.96725941]
[1760001733781,0.00051292,121660.0,121650.0,1.99323474]
[1760001733988,0.00063,121690.0,121680.0,0.93455179]
[1760001734323,0.00063,121690.0,121680.0,1.38607385]
[1760001734762,0.00063,121690.0,121680.0,1.47834385]
[1760001734998,0.00063,121690.0,121680.0,1.2216151]
[1760001735404,0.00063,121690.0,121680.0,1.2226151]
[1760001736208,0.00063,121690.0,121680.0,1.47934385]
[1760001736432,0.00063,121690.0,121680.0,1.23187135]
[1760001737968,0.00063,121690.0,121680.0,1.4886001]
[1760001738839,0.00063,121690.0,121680.0,1.518752]
[1760001739809,0.00216832,121690.0,121680.0,1.518752]
[1760001742234,0.09119503,121720.0,121680.0,1.518752]
[1760001742235,0.09119503,121720.0,121710.0,1.01778253]
[1760001742436,0.02512445,121720.0,121710.0,1.22157459]
[1760001742637,0.02512445,121720.0,121710.0,1.25172649]
[1760001743187,0.02512445,121720.0,121710.0,1.50845524]
[1760001743388,0.02512445,121720.0,121710.0,1.53543057]
[1760001743994,0.02512445,121720.0,121710.0,1.63543056]
[1760001744223,0.02512445,121720.0,121710.0,1.66043055]
[1760001744456,0.02512445,121720.0,121710.0,2.4306168]
[1760001744664,0.04863831,121750.0,121740.0,0.16428454]
[1760001744889,0.04863831,121750.0,121740.0,1.47826285]
[1760001745091,0.04863831,121750.0,121740.0,1.50841475]
[1760001745319,0.0002,121760.0,121750.0,0.50427104]
[1760001745550,0.00032437,121760.0,121750.0,1.1816606]
[1760001745808,0.00032437,121760.0,121750.0,1.2181406]
[1760001746006,0.00032437,121760.0,121750.0,1.27834475]
[1760001746580,0.00032437,121760.0,121750.0,1.27934475]
[1760001746786,0.00032437,121760.0,121750.0,1.5360735]
[1760001747424,0.00032437,121760.0,121750.0,1.61720072]
[1760001747618,0.00032437,121760.0,121750.0,1.66622539]
[1760001748043,0.00032437,121760.0,121750.0,0.86588724]
[1760001748257,0.00032437,121760.0,121750.0,1.27934475]
[1760001748485,0.00391131,121760.0,121750.0,1.30849665]
[1760001748605,0.00391131,121760.0,121750.0,1.30949665]
[1760001751777,0.00391131,121760.0,121750.0,1.31876288]
[1760001752702,0.00391131,121760.0,121750.0,1.06203413]
[1760001752906,0.00391131,121760.0,121750.0,1.31876288]
[1760001754223,0.00391131,121760.0,121750.0,1.60049162]
[1760001754883,0.00391131,121760.0,121750.0,1.34376287]
[1760001755106,0.00391131,121760.0,121750.0,1.60049162]
[1760001763030,0.00391131,121760.0,121750.0,1.31876288]
[1760001764825,0.00391131,121760.0,121750.0,0.80530538]
[1760001765239,0.00391131,121760.0,121750.0,1.31876288]
[1760001770998,0.00391131,121760.0,121750.0,0.43515348]
[1760001771204,0.00391131,121760.0,121750.0,0.69188223]
[1760001771205,0.01158116,121760.0,121750.0,0.69188223]
[1760001771615,0.01158116,121760.0,121750.0,1.03188223]
[1760001772073,0.01158116,121760.0,121750.0,0.77415348]
[1760001772347,0.01158899,121760.0,121750.0,1.03088223]
[1760001772529,0.01158899,121760.0,121750.0,1.03188223]
[1760001772764,0.01158899,121760.0,121750.0,0.96241185]
[1760001772977,0.01158899,121760.0,121750.0,0.62241185]
[1760001773681,0.17584654,121760.0,121750.0,0.3656831]
[1760001774103,0.17584654,121760.0,121750.0,0.70763605]
[1760001774697,0.17584654,121760.0,121750.0,0.54336501]
[1760001774905,0.01158899,121760.0,121750.0,0.70763605]
[1760001775540,0.17584654,121760.0,121750.0,0.70763605]
[1760001775955,0.01158899,121760.0,121750.0,0.70763605]
[1760001776531,0.17584654,121760.0,121750.0,0.70763605]
[1760001778157,0.16816886,121760.0,121750.0,0.70763605]
[1760001778365,0.17585018,121760.0,121750.0,0.70763605]
[1760001779182,0.17585018,121760.0,121750.0,0.3656831]
[1760001779797,0.17585018,121760.0,121750.0,0.20141206]
[1760001779992,0.17585018,121760.0,121750.0,0.3656831]
[1760001780627,0.17585018,121760.0,121750.0,0.70763605]
[1760001780834,0.17584894,121760.0,121750.0,0.70763605]
[1760001781050,0.16816886,121760.0,121750.0,0.70763605]
[1760001781815,0.16816886,121760.0,121750.0,0.54336501]
[1760001782241,0.16816886,121760.0,121750.0,0.70763605]
[1760001782453,0.16816886,121760.0,121750.0,0.54336501]
[1760001784278,0.16816886,121760.0,121750.0,0.20141206]
[1760001784681,0.21883886,121760.0,121750.0,0.14636206]
[1760001785644,0.21883886,121760.0,121750.0,0.14536206]
[1760001785799,0.17943886,121760.0,121750.0,0.19910206]
[1760001786413,0.16316886,121760.0,121750.0,0.19910206]
[1760001792227,0.16316886,121760.0,121750.0,0.3633731]
[1760001793950,0.16425755,121760.0,121750.0,0.19910206]
[1760001794171,0.16425755,121760.0,121740.0,0.0284]
[1760001794172,0.16427104,121750.0,121740.0,0.08214]
[1760001794378,0.16427104,121750.0,121740.0,0.20090206]
[1760001794580,0.54062399,121750.0,121730.0,0.08214]
[1760001794783,0.18024454,121740.0,121730.0,0.11152206]
[1760001794986,0.18952103,121740.0,121730.0,0.0284]
[1760001795219,0.22392103,121740.0,121730.0,0.06404]
[1760001795876,0.22392103,121740.0,121730.0,0.0284]
[1760001796255,0.22392103,121740.0,121730.0,0.06404]
[1760001796874,0.18024454,121740.0,121730.0,0.11778]
[1760001797077,0.16427104,121750.0,121730.0,0.62851496]
[1760001797254,0.16427104,121750.0,121740.0,0.42743134]
[1760001797458,0.16427104,121750.0,121740.0,0.62254749]
[1760001797677,0.16427104,121750.0,121740.0,0.45826295]
[1760001797885,0.16427104,121750.0,121740.0,0.11631]
[1760001800052,0.16427104,121750.0,121740.0,0.11767985]
[1760001800257,0.16427104,121750.0,121740.0,0.00136985]
[1760001800258,0.19867104,121750.0,121740.0,0.00136985]
[1760001800862,0.23090104,121750.0,121740.0,0.00136985]
[1760001801298,0.19867104,121750.0,121740.0,0.00136985]
[1760001801837,0.57285399,121750.0,121740.0,0.00136985]
[1760001802681,0.57385399,121750.0,121740.0,0.00136985]
[1760001803317,0.23190104,121750.0,121740.0,0.00136985]
[1760001803519,0.65257966,121750.0,121740.0,0.00136985]
[1760001803966,0.99257966,121750.0,121740.0,0.00136985]
[1760001804626,1.07570172,121750.0,121740.0,0.00136985]
[1760001805027,0.87278632,121750.0,121740.0,0.00136985]
[1760001805229,1.09752635,121750.0,121740.0,0.00136985]
[1760001805451,1.09652635,121750.0,121740.0,1e-08]
[1760001806266,1.09952635,121750.0,121740.0,1e-08]
[1760001806469,1.02080068,121750.0,121740.0,1e-08]
[1760001807514,0.84922399,121750.0,121740.0,1e-08]
[1760001808547,0.95701222,121750.0,121740.0,1e-08]
[1760001809157,0.98716412,121750.0,121740.0,1e-08]
[1760001809749,0.64716412,121750.0,121740.0,1e-08]
[1760001809912,0.72716092,121750.0,121740.0,1e-08]
[1760001810482,0.78814726,121750.0,121740.0,1e-08]
[1760001810628,0.70815046,121750.0,121740.0,1e-08]
[1760001815600,0.36619751,121750.0,121740.0,1e-08]
[1760001815811,0.70815046,121750.0,121740.0,1e-08]
[1760001816213,1.04815046,121750.0,121740.0,1e-08]
[1760001816901,1.0558193,121750.0,121740.0,1e-08]
[1760001817121,1.04815046,121750.0,121740.0,1e-08]
[1760001817335,1.13581637,121750.0,121740.0,1e-08]
[1760001818053,1.12814726,121750.0,121740.0,1e-08]
[1760001818288,1.13581699,121750.0,121740.0,1e-08]
[1760001818510,1.1511572,121750.0,121740.0,1e-08]
[1760001820272,1.0711604,121750.0,121740.0,1e-08]
[1760001821552,1.07116497,121750.0,121740.0,1e-08]
[1760001828378,1.09616496,121750.0,121740.0,1e-08]
[1760001828609,1.45581677,121750.0,121740.0,1e-08]
[1760001828843,1.57793068,121750.0,121740.0,1e-08]
[1760001829295,1.65792748,121750.0,121740.0,1e-08]
[1760001829517,1.65492748,121750.0,121740.0,1e-08]
[1760001830207,1.65493863,121750.0,121740.0,1e-08]
[1760001830440,0.97103273,121750.0,121740.0,1e-08]
[1760001830657,1.31298568,121750.0,121740.0,1e-08]
[1760001830876,1.31798568,121750.0,121740.0,1e-08]
[1760001831298,1.31498568,121750.0,121740.0,1e-08]
[1760001831511,1.21498569,121750.0,121740.0,1e-08]
[1760001831721,1.31498568,121750.0,121740.0,1e-08]
[1760001832794,1.31898568,121750.0,121740.0,1e-08]
[1760001833117,1.21898569,121750.0,121740.0,1e-08]
[1760001833349,1.31898568,121750.0,121740.0,1e-08]
[1760001833757,1.66093863,121750.0,121740.0,1e-08]